lending/lending_fUSD_20250408
["ID","MTS","AMOUNT","RATE_DAILY","PERIOD"]
[357560272,1744155038744,-350.28517195,0.0002,2]
[357560279,1744155040646,-41108.58281473,0.0002,2]
[357560280,1744155040701,-178667.86655059,0.0002,2]
[357560281,1744155040715,-97838.31071003,0.0002,2]
[357560282,1744155040728,-6945.00601827,0.0002,2]
[357560283,1744155040745,-1493.27209043,0.0002,2]
[357560284,1744155040756,-25767.27006787,0.0002,2]
[357560285,1744155041026,-5189.67772578,0.0002,2]
[357560286,1744155041038,-11814.4454,0.0002,2]
[357560287,1744155041050,-1231044.56682041,0.0002,2]
[357560311,1744155044445,-2091.94340739,0.0002,2]
[357560366,1744155947093,-169.07,0.00016712,2]
[357560367,1744155947114,-161.35,0.00017044,2]
[357560368,1744155947134,-428.80251072,0.00017426,2]
[357560369,1744155947154,-428.80251072,0.00017763,2]
[357560370,1744155947174,-428.80251072,0.00017943,2]
[357560371,1744155947194,-428.80251072,0.00018179,2]
[357560372,1744155947214,-428.80251072,0.0001845,2]
[357560373,1744155947234,-428.80251072,0.00018656,2]
[357560374,1744155947255,-150.0,0.00018712,2]
[357560375,1744155947275,-250.0,0.00018749,2]
[357560376,1744155947296,-250.0,0.00018749,2]
[357560377,1744155947316,-250.0,0.00018749,2]
[357560378,1744155947336,-23151.28930517,0.00018886,2]
[357560379,1744155957103,-748.71069483,0.00018886,2]
[357560380,1744155957125,-1471.35356,0.0001907,2]
[357560381,1744155957146,-475.95,0.00019134,2]
[357560382,1744155957167,-428.80251072,0.00019166,2]
[357560383,1744155957188,-150.0,0.00019167,2]
[357560384,1744155957210,-428.80251072,0.00019295,2]
[357560385,1744155957231,-250.31,0.00019447,2]
[357560386,1744155957254,-200.0,0.00019542,2]
[357560387,1744155957275,-428.80251072,0.00019709,2]
[357560388,1744155957297,-200.0,0.00019715,7]
[357560389,1744155957318,-428.80251073,0.00019749,2]
[357560390,1744155957340,-239.90070708,0.000198,2]
[357560391,1744155957361,-150.0,0.00019899,2]
[357560392,1744155957381,-465.52331498,0.00019899,2]
[357560393,1744155957402,-76998.93974524,0.000199,2]
[357560394,1744155957422,-409.72425842,0.00019973,2]
[357560395,1744155957443,-154.43450239,0.00019973,2]
[357560396,1744155957463,-161.29877625,0.00019973,2]
[357560397,1744155957484,-362.70993245,0.00019973,2]
[357560398,1744155957507,-391.54396359,0.00019973,2]
[357560399,1744156025116,-483.77,0.00019348,2]
[357560400,1744156025140,-300.0,0.00019809,2]
[357560401,1744156025162,-29751.32994873,0.0001981,2]
[357560409,1744156166086,-784.4925,0.0001971,2]
[357560410,1744156166107,-979.72214583,0.000198,2]
[357560411,1744156166128,-35327.09387417,0.0001981,2]
[357560423,1744156231507,-300.0,0.00019809,2]
[357560424,1744156231517,-122.3963079,0.0001981,2]
[357560440,1744156231891,-6504.05104181,0.0001981,2]
[357560442,1744156231902,-299.99,0.0001981,2]
[357560444,1744156231915,-419.38027886,0.0001981,2]
[357560447,1744156231926,-13877.26422557,0.0001981,2]
[357560448,1744156231935,-599.47474533,0.000199,2]
[357560451,1744156231944,-4914.8564936,0.000199,2]
[357560471,1744156232208,-2348.329902,0.000199,2]
[357560472,1744156232227,-478.31588386,0.000199,2]
[357560475,1744156237630,-3904.57611316,0.000199,2]
[357560476,1744156237642,-4934.79753981,0.000199,2]
[357560477,1744156237652,-340.46133964,0.00019973,2]
[357560478,1744156237661,-250.0,0.00019985,2]
[357560479,1744156237670,-250.0,0.00019994,2]
[357560480,1744156237679,-3044.67295521,0.00019998,2]
[357560481,1744156237689,-3450.7813118,0.00019998,2]
[357560482,1744156237698,-180.87173694,0.00019999,5]
[357560483,1744156237708,-3752.21511659,0.0002,2]
[357560484,1744156237734,-600.00000005,0.0002,2]
[357560485,1744156237783,-578.91006545,0.0002,2]
[357560486,1744156237843,-298.0,0.0002,2]
[357560487,1744156237854,-247328.77432095,0.0002,2]
[357560488,1744156237866,-567.17940406,0.0002,2]
[357560489,1744156237877,-559.28999998,0.0002,2]
[357560490,1744156237906,-1106.04237799,0.0002,2]
[357560496,1744156238311,-12650.65394582,0.0002,2]
[357560497,1744156239850,-4380.20203533,0.0002,2]
[357560498,1744156239898,-16928.68996396,0.0002,2]
[357560499,1744156239909,-671.80983844,0.0002,2]
[357560500,1744156240612,-4176.16996464,0.0002,2]
[357560501,1744156240631,-2712.83512569,0.0002,2]
[357560502,1744156240642,-452.19218102,0.0002,2]
[357560515,1744156242627,-3498.65894053,0.0002,2]
[357560517,1744156242639,-690.50000005,0.0002,2]
[357560521,1744156243543,-40364.290154,0.0002,2]
[357560522,1744156243558,-522.5,0.0002,2]
[357560523,1744156243710,-39309.84810718,0.0002,2]
[357560524,1744156243719,-11032.68426631,0.0002,4]
[357560525,1744156243738,-4781.53286427,0.0002,4]
[357560526,1744156244038,-25268.20431982,0.0002,4]
[357560527,1744156244059,-30.07134647,0.0002,4]
[357560548,1744156245618,-1181.02573978,0.0002,4]
[357560550,1744156245628,-10000.0,0.0002,2]
[357560552,1744156245637,-2817.55140458,0.0002001,2]
[357560554,1744156245646,-2760.03934124,0.0002001,2]
[357560556,1744156245657,-272.13754309,0.0002001,2]
[357560564,1744156245733,-1675.54218425,0.0002001,2]
[357560565,1744156245743,-1064.28093142,0.0002001,2]
[357560566,1744156245753,-904.67316412,0.0002015,2]
[357560567,1744156245787,-330.96594672,0.0002015,2]
[357560568,1744156245798,-433.8984138,0.0002015,2]
[357560569,1744156245807,-3635.34170473,0.000207,2]
[357560570,1744156245818,-16611.2,0.000207,2]
[357560571,1744156245962,-1617.88061915,0.000207,2]
[357560572,1744156245974,-165.02,0.00020962,2]
[357560573,1744156245989,-300.0,0.00021,2]
[357560574,1744156245998,-11860.44135313,0.00021,2]
[357560575,1744156246008,-490.07996605,0.00021,2]
[357560576,1744156246021,-1980.88047811,0.00021,2]
[357560578,1744156246031,-190.73110453,0.00021,2]
[357560579,1744156246041,-1151.70002099,0.00021,2]
[357560581,1744156246050,-190.08237317,0.00021,2]
[357560582,1744156246061,-188.08,0.00021161,2]
[357560584,1744156246071,-250.0,0.00021187,2]
[357560585,1744156246080,-845.37,0.00021228,2]
[357560586,1744156246090,-2026.54,0.00021271,2]
[357560587,1744156246099,-8139.88136269,0.00021289,2]
[357560588,1744156246132,-3947.09174226,0.00021289,2]
[357560589,1744156246141,-400.0,0.00021574,2]
[357560590,1744156246150,-200.0,0.00021594,2]
[357560591,1744156246160,-483.77,0.00021612,2]
[357560592,1744156246169,-166.61,0.00021612,2]
[357560593,1744156246178,-1299.29,0.00021638,2]
[357560594,1744156246187,-191.52,0.00021695,2]
[357560595,1744156246196,-262.28034175,0.000217,2]
[357560596,1744156246205,-191.52,0.00021701,2]
[357560597,1744156246214,-191.52,0.00021707,2]
[357560598,1744156246223,-191.52,0.00021713,2]
[357560599,1744156246233,-191.52,0.00021718,2]
[357560600,1744156246243,-191.52,0.00021724,2]
[357560601,1744156246252,-191.52,0.0002173,2]
[357560602,1744156246261,-191.52,0.00021735,2]
[357560603,1744156246271,-191.52,0.00021741,2]
[357560604,1744156246281,-191.52,0.00021747,2]
[357560605,1744156246290,-191.52,0.00021752,2]
[357560606,1744156246300,-191.52,0.00021758,2]
[357560607,1744156246309,-191.52,0.00021764,2]
[357560608,1744156246318,-191.52,0.0002177,2]
[357560609,1744156246327,-191.52,0.00021775,2]
[357560610,1744156246336,-191.52,0.00021781,2]
[357560611,1744156246345,-191.52,0.00021787,2]
[357560612,1744156246354,-191.52,0.00021792,2]
[357560613,1744156246363,-191.52,0.00021798,2]
[357560614,1744156246372,-191.52,0.00021804,2]
[357560615,1744156246382,-5748.38,0.00021819,2]
[357560616,1744156246391,-2000.0,0.00021819,2]
[357560617,1744156246401,-150.0,0.00021917,2]
[357560618,1744156246410,-185.77,0.00021918,2]
[357560619,1744156246419,-606.47,0.00021954,2]
[357560620,1744156246428,-250.0,0.0002197,2]
[357560621,1744156246438,-247.11416524,0.00022,2]
[357560622,1744156246447,-500.0,0.00022,2]
[357560623,1744156246456,-4308.29,0.00022027,2]
[357560624,1744156246466,-1000.0,0.00022071,2]
[357560625,1744156246475,-231.57498015,0.0002211,2]
[357560626,1744156246484,-609.46,0.00022141,2]
[357560627,1744156246494,-1147.16757625,0.000225,2]
[357560628,1744156246503,-350.0,0.00023,2]
[357560629,1744156246512,-320.0,0.00023,10]
[357560630,1744156246522,-165.02,0.00023058,2]
[357560631,1744156246531,-150.0,0.00023287,2]
[357560632,1744156246540,-446.43959404,0.0002333,2]
[357560633,1744156246550,-599.47474527,0.00023344,2]
[357560634,1744156246559,-16580.87593236,0.00023344,2]
[357560635,1744156246568,-262.84,0.00023397,2]
[357560636,1744156246577,-170.73,0.00023836,2]
[357560637,1744156246586,-483.77,0.00023875,2]
[357560638,1744156246595,-151.47,0.0002399,2]
[357560639,1744156246604,-12127.29074554,0.00024,2]
[357560640,1744156246614,-9833.77827623,0.00024,14]
[357560641,1744156246623,-11673.80172716,0.00024,2]
[357560642,1744156246632,-2000.0,0.00024421,4]
[357560643,1744156246641,-150.0,0.00024657,2]
[357560644,1744156246651,-262.84,0.00024767,2]
[357560645,1744156246660,-500.0,0.00024773,2]
[357560646,1744156246669,-165507.86927,0.000248,2]
[357560647,1744156246679,-1000.0,0.0002483,2]
[357560648,1744156246688,-154.13585076,0.00024873,2]
[357560649,1744156246697,-500.0,0.00024873,2]
[357560650,1744156246706,-500.52770811,0.00024873,2]
[357560651,1744156246715,-27584.6448784,0.0002489,2]
[357560652,1744156246725,-151.47,0.0002489,2]
[357560653,1744156246735,-291.01202975,0.000249,2]
[357560654,1744156246744,-700.0,0.000249,9]
[357560655,1744156246754,-146957.96938,0.000249,2]
[357560656,1744156246763,-400.0,0.00025,2]
[357560657,1744156246773,-199.8025561,0.00025,2]
[357560658,1744156246782,-644.65476698,0.00025,2]
[357560659,1744156246791,-165.02,0.00025154,2]
[357560660,1744156246801,-161.35,0.00025566,2]
[357560661,1744156246810,-340.43344067,0.00025861,2]
[357560662,1744156246819,-500.0,0.000259,2]
[357560663,1744156246829,-150.0,0.00026027,2]
[357560664,1744156246839,-159.14481158,0.00026127,2]
[357560665,1744156246848,-500.0,0.00026127,2]
[357560666,1744156246857,-152.53451541,0.00026127,2]
[357560667,1744156246866,-512.44092776,0.00026127,2]
[357560668,1744156246877,-502.19994835,0.00026127,2]
[357560669,1744156246886,-500.71468123,0.00026133,2]
[357560670,1744156246895,-483.77,0.00026139,2]
[357560671,1744156246904,-711.24146684,0.000264,2]
[357560672,1744156246913,-7347.89846899,0.00026657,2]
[357560673,1744156246922,-9194.88162613,0.00026778,2]
[357560674,1744156246932,-7347.89846899,0.00026778,2]
[357560675,1744156246941,-599.47474527,0.00026788,2]
[357560676,1744156246950,-16580.87593236,0.00026788,2]
[357560677,1744156246960,-7347.89846899,0.00026805,2]
[357560678,1744156246969,-9194.88162613,0.00026815,2]
[357560679,1744156246981,-7347.89846899,0.00026815,2]
[357560680,1744156246991,-181.19,0.00026849,2]
[357560681,1744156247000,-153.16,0.00026849,2]
[357560682,1744156247009,-450.0,0.00027,2]
[357560683,1744156247018,-165.02,0.0002725,2]
[357560684,1744156247029,-150.0,0.00027397,2]
[357560685,1744156247039,-245.81,0.00027397,2]
[357560686,1744156247048,-173.26,0.00027397,10]
[357560687,1744156247058,-193.41540981,0.000275,2]
[357560688,1744156247068,-1000.0,0.00027588,2]
[357560689,1744156247077,-483.77,0.00028403,2]
[357560690,1744156247087,-150.0,0.00028767,2]
[357560691,1744156247096,-245.81,0.00028767,2]
[357560692,1744156247106,-7347.89846899,0.0002899,2]
[357560693,1744156247115,-500.0,0.00029,2]
[357560694,1744156247124,-165.02,0.00029347,2]
[357560695,1744156247134,-9194.88162613,0.00029795,2]
[357560696,1744156247143,-7347.89846899,0.00029795,2]
[357560697,1744156247152,-9194.88162613,0.00029805,2]
[357560698,1744156247161,-14695.796938,0.00029805,2]
[357560699,1744156247171,-151.47,0.00029805,2]
[357560700,1744156247180,-150.99,0.00029815,2]
[357560701,1744156247190,-9999.99,0.00029815,2]
[357560702,1744156247199,-9999.99,0.00029815,2]
[357560703,1744156247208,-8241.43,0.00029815,2]
[357560704,1744156247217,-646.16,0.00029815,2]
[357560705,1744156247226,-1002.13,0.00029815,2]
[357560706,1744156247236,-635.51506131,0.0003,2]
[357560707,1744156247245,-150.0,0.00030136,2]
[357560708,1744156247255,-245.81,0.00030137,2]
[357560709,1744156247264,-7347.89846899,0.00030212,2]
[357560710,1744156247273,-9194.88162613,0.00030222,2]
[357560711,1744156247282,-7347.89846899,0.00030222,2]
[357560712,1744156247292,-599.47474527,0.00030232,2]
[357560713,1744156247301,-16580.87593236,0.00030232,2]
[357560714,1744156247311,-501.79370607,0.00030252,5]
[357560715,1744156247320,-7347.89846899,0.00030272,2]
[357560716,1744156247329,-9194.88162613,0.00030283,2]
[357560717,1744156247339,-7347.89846899,0.00030283,2]
[357560718,1744156247348,-291.01202972,0.00030322,2]
[357560719,1744156247357,-1000.0,0.00030347,2]
[357560720,1744156247367,-483.77,0.00030667,2]
[357560721,1744156247376,-184.76997001,0.0003095,2]
[357560722,1744156247385,-609.46,0.00030998,2]
[357560723,1744156247394,-500.0,0.00031379,5]
[357560724,1744156247404,-165.02,0.00031443,2]
[357560725,1744156247413,-3400.0,0.000315,2]
[357560726,1744156247422,-150.0,0.00031506,2]
[357560727,1744156247431,-245.81,0.00031507,2]
[357560728,1744156247441,-181.19,0.00032646,2]
[357560729,1744156247452,-5557.0,0.000327,3]
[357560730,1744156247462,-150.0,0.00032876,2]
[357560731,1744156247471,-245.81,0.00032877,2]
[357560732,1744156247481,-483.77,0.00032931,2]
[357560733,1744156247494,-2000.0,0.00032947,4]
[357560734,1744156247506,-215.9915039,0.000331,2]
[357560735,1744156247517,-1000.0,0.00033106,2]
[357560736,1744156247526,-7347.89846899,0.00033657,2]
[357560737,1744156247535,-276.5843275,0.00033657,2]
[357560738,1744156247545,-9194.88162613,0.00033666,2]
[357560739,1744156247554,-7347.89846899,0.00033666,2]
[357560740,1744156247564,-599.47474527,0.00033676,2]
[357560741,1744156247573,-16580.87593236,0.00033676,2]
[357560742,1744156247582,-7347.89846899,0.0003375,2]
[357560743,1744156247592,-5557.0,0.000339,5]
[357560744,1744156247601,-150.0,0.00034246,2]
[357560745,1744156247609,-150.0,0.00034548,10]
[357560746,1744156247619,-7347.89846899,0.0003479,2]
[357560747,1744156247628,-727.98897519,0.0003489,14]
[357560748,1744156247636,-159.29,0.00035,2]
[357560749,1744156247646,-170.73,0.00035068,2]
[357560750,1744156247655,-483.77,0.00035195,2]
[357560751,1744156247664,-150.0,0.00035616,2]
[357560752,1744156247673,-495.133,0.00035671,42]
[357560753,1744156247682,-193.91,0.00035671,120]
[357560754,1744156247691,-291.01202972,0.00035745,2]
[357560755,1744156247701,-163.72059963,0.0003589,8]
[357560756,1744156247710,-1500.0,0.000359,13]
[357560757,1744156247719,-500.0,0.00035973,5]
[357560758,1744156247729,-502.81834,0.00035973,5]
[357560759,1744156247738,-500.0,0.00035973,5]
[357560760,1744156247747,-525.8563367,0.00035973,5]
[357560761,1744156247756,-83981.15424528,0.00036,2]
[357560762,1744156247765,-643.30084881,0.00036,2]
[357560763,1744156247774,-300.0,0.00036,2]
[357560764,1744156247783,-209.603907,0.00036,7]
[357560765,1744156247793,-151.0,0.00036,7]
[357560766,1744156247802,-151.0,0.00036,7]
[357560767,1744156247811,-2407.628196,0.00036,7]
[357560768,1744156247820,-2407.628196,0.00036,7]
[357560769,1744156247829,-151.0,0.00036,7]
[357560770,1744156247839,-372.762222,0.00036,7]
[357560771,1744156247848,-372.762222,0.00036,7]
[357560772,1744156247857,-151.0,0.00036,7]
[357560773,1744156247866,-151.0,0.00036,7]
[357560774,1744156247875,-500.0,0.00036973,5]
[357560775,1744156247885,-500.0,0.00036973,5]
[357560776,1744156247894,-150.0,0.00036986,2]
[357560777,1744156247903,-151.0,0.0003699,7]
[357560778,1744156247912,-151.0,0.0003699,7]
[357560779,1744156247922,-151.0,0.0003699,7]
[357560780,1744156247932,-151.0,0.0003699,7]
[357560781,1744156247942,-151.0,0.0003699,7]
[357560782,1744156247952,-151.63547,0.0003699,7]
[357560783,1744156247961,-151.0,0.0003699,7]
[357560784,1744156247971,-151.0,0.0003699,7]
[357560785,1744156247984,-244.769885,0.0003699,7]
[357560786,1744156247993,-244.769885,0.0003699,7]
[357560787,1744156248003,-151.0,0.0003699,7]
[357560788,1744156248012,-151.0,0.0003699,7]
[357560789,1744156248023,-151.0,0.0003699,7]
[357560790,1744156248324,-261.19549,0.0003699,7]
[357560791,1744156248350,-261.19549,0.0003699,7]
[357560792,1744156248360,-151.47,0.0003699,2]
[357560793,1744156248370,-151.47,0.0003699,2]
[357560794,1744156248380,-63128.18936264,0.00037,2]
[357560795,1744156248389,-213125.73410015,0.00037,2]
[357560796,1744156248399,-151.0,0.00037,7]
[357560797,1744156248409,-151.0,0.00037,7]
[357560798,1744156248419,-151.0,0.00037,7]
[357560799,1744156248428,-151.0,0.00037,7]
[357560800,1744156248438,-153.19911,0.00037,7]
[357560801,1744156248448,-151.0,0.00037,7]
[357560802,1744156248458,-151.0,0.00037,7]
[357560803,1744156248468,-151.0,0.00037,7]
[357560804,1744156248478,-151.0,0.00037,7]
[357560805,1744156248489,-280.997358,0.00037,7]
[357560806,1744156248501,-151.0,0.00037,7]
[357560807,1744156248517,-151.0,0.00037,7]
[357560808,1744156248527,-151.0,0.00037,7]
[357560809,1744156248538,-151.0,0.00037,7]
[357560810,1744156248548,-152.117888,0.00037,7]
[357560811,1744156248557,-151.0,0.00037,7]
[357560812,1744156248566,-151.0,0.00037,7]
[357560813,1744156248580,-152.435324,0.00037,7]
[357560814,1744156248591,-151.0,0.00037,7]
[357560815,1744156248601,-151.0,0.00037,7]
[357560816,1744156248611,-151.0,0.00037,7]
[357560817,1744156248621,-151.0,0.00037,7]
[357560818,1744156248631,-151.0,0.00037,7]
[357560819,1744156248640,-151.0,0.00037,7]
[357560820,1744156248650,-151.0,0.00037,7]
[357560821,1744156248660,-151.0,0.00037,7]
[357560822,1744156248670,-230.178784,0.00037,7]
[357560823,1744156248680,-151.0,0.00037,7]
[357560824,1744156248689,-151.0,0.00037,7]
[357560825,1744156248705,-151.0,0.00037,7]
[357560826,1744156248715,-151.0,0.00037,7]
[357560827,1744156248725,-151.0,0.00037,7]
[357560828,1744156248734,-151.0,0.00037,7]
[357560829,1744156248744,-151.0,0.00037,7]
[357560830,1744156248754,-151.0,0.00037,7]
[357560831,1744156248763,-151.968823,0.00037,7]
[357560832,1744156248774,-151.0,0.00037,7]
[357560833,1744156248783,-174.800116,0.00037,7]
[357560834,1744156248793,-151.0,0.00037,7]
[357560835,1744156248803,-174.800116,0.00037,7]
[357560836,1744156248812,-151.0,0.00037,7]
[357560837,1744156248822,-151.0,0.00037,7]
[357560838,1744156248832,-151.0,0.00037,7]
[357560839,1744156248841,-151.0,0.00037,7]
[357560840,1744156248850,-151.0,0.00037,7]
[357560841,1744156248860,-151.0,0.00037,7]
[357560842,1744156248870,-253.637388,0.00037,7]
[357560843,1744156248879,-167.244796,0.00037,7]
[357560844,1744156248889,-244.769885,0.00037,7]
[357560845,1744156248898,-244.769885,0.00037,7]
[357560846,1744156248908,-151.0,0.00037,7]
[357560847,1744156248917,-235.777128,0.00037,7]
[357560848,1744156248926,-261.19549,0.00037,7]
[357560849,1744156248936,-151.0,0.00037,7]
[357560850,1744156248945,-261.19549,0.00037,7]
[357560851,1744156248954,-152.309214,0.00037,7]
[357560852,1744156248965,-2407.628196,0.00037,7]
[357560853,1744156248975,-2407.628196,0.00037,7]
[357560854,1744156248987,-243.741296,0.00037,7]
[357560855,1744156248996,-372.762222,0.00037,7]
[357560856,1744156249006,-372.762222,0.00037,7]
[357560857,1744156249016,-151.0,0.00037,7]
[357560858,1744156249027,-151.0,0.00037,7]
[357560859,1744156249036,-599.47474527,0.00037121,2]
[357560860,1744156249046,-16580.87593236,0.00037121,2]
[357560861,1744156249055,-185.3975,0.000372,103]
[357560862,1744156249067,-483.77,0.00037459,2]
[357560863,1744156249077,-667.02952799,0.00038356,15]
[357560864,1744156249086,-667.02952799,0.00038356,15]
[357560865,1744156249096,-667.02952799,0.00038356,15]
[357560866,1744156249106,-667.02952799,0.00038356,15]
[357560867,1744156249115,-667.02952799,0.00038356,15]
[357560868,1744156249125,-667.02952799,0.00038356,15]
[357560869,1744156249134,-667.02952799,0.00038356,15]
[357560870,1744156249144,-667.02952799,0.00038356,15]
[357560871,1744156249155,-670.95323109,0.00038356,15]
[357560872,1744156249164,-670.95323109,0.00038356,15]
[357560873,1744156249174,-670.95323109,0.00038356,15]
[357560874,1744156249183,-670.95323109,0.00038356,15]
[357560875,1744156249194,-670.95323109,0.00038356,15]
[357560876,1744156249204,-670.95323109,0.00038356,15]
[357560877,1744156249213,-670.95323109,0.00038356,15]
[357560878,1744156249223,-675.77570744,0.00038356,15]
[357560879,1744156249232,-675.77570744,0.00038356,15]
[357560880,1744156249242,-675.77570744,0.00038356,15]
[357560881,1744156249251,-675.77570744,0.00038356,15]
[357560882,1744156249261,-675.77570744,0.00038356,15]
[357560883,1744156249271,-675.77570744,0.00038356,15]
[357560884,1744156249281,-1202.16941639,0.00038356,15]
[357560885,1744156249291,-150.0,0.00038356,2]
[357560886,1744156249301,-151.0,0.00038356,7]
[357560887,1744156249311,-151.0,0.00038356,7]
[357560888,1744156249320,-151.0,0.00038356,7]
[357560889,1744156249331,-151.0,0.00038356,7]
[357560890,1744156249340,-151.0,0.00038356,7]
[357560891,1744156249351,-151.0,0.00038356,7]
[357560892,1744156249360,-151.0,0.00038356,7]
[357560893,1744156249369,-151.0,0.00038356,7]
[357560894,1744156249379,-1041.35,0.000384,14]
[357560895,1744156249388,-181.19,0.00038443,2]
[357560896,1744156249398,-2157.0,0.00039121,5]
[357560897,1744156249407,-483.77,0.00039723,2]
[357560898,1744156249417,-150.0,0.00039726,2]
[357560899,1744156249426,-2300.0,0.000399,14]
[357560900,1744156249436,-151.47,0.0003999,2]
[357560901,1744156249446,-2563.0,0.0004,14]
[357560902,1744156249456,-880.99087457,0.0004,3]
[357560903,1744156249465,-33749.00144138,0.0004,30]
[357560904,1744156249475,-966.7295984,0.0004,20]
[357560905,1744156249484,-199036.15079896,0.0004,30]
[357560906,1744156249494,-151.0,0.0004,14]
[357560907,1744156249503,-151.0,0.0004,14]
[357560908,1744156249513,-151.0,0.0004,14]
[357560909,1744156249523,-151.0,0.0004,14]
[357560910,1744156249532,-151.0,0.0004,14]
[357560911,1744156249542,-151.0,0.0004,14]
[357560912,1744156249551,-151.0,0.0004,14]
[357560913,1744156249561,-151.0,0.0004,14]
[357560914,1744156249570,-151.0,0.0004,14]
[357560915,1744156249580,-151.0,0.0004,14]
[357560916,1744156249590,-151.0,0.0004,14]
[357560917,1744156249599,-151.0,0.0004,14]
[357560918,1744156249609,-151.0,0.0004,14]
[357560919,1744156249619,-151.0,0.0004,14]
[357560920,1744156249628,-151.0,0.0004,14]
[357560921,1744156249638,-151.0,0.0004,14]
[357560922,1744156249647,-152.270447,0.0004,14]
[357560923,1744156249657,-151.0,0.0004,14]
[357560924,1744156249666,-151.0,0.0004,14]
[357560925,1744156249676,-185.244402,0.0004,14]
[357560926,1744156249685,-151.0,0.0004,14]
[357560927,1744156249695,-151.0,0.0004,14]
[357560928,1744156249704,-151.0,0.0004,14]
[357560929,1744156249713,-155.666449,0.0004,14]
[357560930,1744156249723,-152.0974,0.0004,14]
[357560931,1744156249732,-151.0,0.0004,14]
[357560932,1744156249742,-151.0,0.0004,14]
[357560933,1744156249751,-151.0,0.0004,14]
[357560934,1744156249761,-151.0,0.0004,14]
[357560935,1744156249771,-151.0,0.0004,14]
[357560936,1744156249780,-174.800116,0.0004,14]
[357560937,1744156249790,-151.0,0.0004,14]
[357560938,1744156249799,-174.800116,0.0004,14]
[357560939,1744156249809,-151.0,0.0004,14]
[357560940,1744156249819,-151.0,0.0004,14]
[357560941,1744156249828,-151.0,0.0004,14]
[357560942,1744156249837,-176.730096,0.0004,14]
[357560943,1744156249846,-151.0,0.0004,14]
[357560944,1744156249862,-244.769885,0.0004,14]
[357560945,1744156249872,-244.769885,0.0004,14]
[357560946,1744156249881,-151.0,0.0004,14]
[357560947,1744156249892,-261.19549,0.0004,14]
[357560948,1744156249901,-151.0,0.0004,14]
[357560949,1744156249910,-261.19549,0.0004,14]
[357560950,1744156249920,-2407.628196,0.0004,14]
[357560951,1744156249929,-2407.628196,0.0004,14]
[357560952,1744156249939,-372.762222,0.0004,14]
[357560953,1744156249948,-372.762222,0.0004,14]
[357560954,1744156249958,-151.0,0.0004,14]
[357560955,1744156249967,-1760.0,0.00040063,2]
[357560956,1744156249980,-193.91,0.00040149,120]
[357560957,1744156249989,-419.98966909,0.000405,2]
[357560958,1744156249999,-599.47474527,0.00040565,15]
[357560959,1744156250009,-16580.87593236,0.00040565,15]
[357560960,1744156250019,-150.0,0.00041095,120]
[357560961,1744156250028,-457.56343049,0.00041095,120]
[357560962,1744156250038,-150.0,0.00041096,10]
[357560963,1744156250048,-168.42,0.00041096,2]
[357560964,1744156250059,-291.01202972,0.00041167,2]
[357560965,1744156250068,-1000.0,0.00041452,10]
[357560966,1744156250078,-1897.95626259,0.00041474,8]
[357560967,1744156250088,-350.0,0.00041644,10]
[357560968,1744156250098,-483.77,0.00041987,2]
[357560969,1744156250107,-184.76997001,0.00042,16]